bitfinex/quotes_BTCUSD_20250105
["timestamp","ask_amount","ask_price","bid_price","bid_amount"]
[1736079936746,1.92355788,97817.0,97816.0,2e-07]
[1736079936945,1.91455788,97817.0,97816.0,2e-07]
[1736079937297,0.2391164,97812.0,97790.0,0.0001706]
[1736079937496,0.459396,97801.0,97790.0,0.0001706]
[1736079937693,0.86785714,97801.0,97790.0,0.0001706]
[1736079937898,0.8799261,97801.0,97790.0,0.0001706]
[1736079938131,1.0168425,97801.0,97790.0,0.0001706]
[1736079938299,0.2688564,97798.0,97797.0,4e-07]
[1736079938519,0.85031754,97798.0,97797.0,4e-07]
[1736079938721,0.86365872,97798.0,97797.0,4e-07]
[1736079939537,1.58904503,97798.0,97797.0,4e-07]
[1736079939776,1.69303135,97798.0,97797.0,4e-07]
[1736079940022,1.70203135,97798.0,97797.0,4e-07]
[1736079940426,1.71791135,97798.0,97797.0,4e-07]
[1736079940866,1.70891135,97798.0,97797.0,4e-07]
[1736079941210,1.71791135,97798.0,97797.0,4e-07]
[1736079941431,1.70891135,97798.0,97797.0,4e-07]
[1736079941639,1.71791135,97798.0,97797.0,4e-07]
[1736079942007,1.70891135,97798.0,97797.0,4e-07]
[1736079942210,1.71791135,97798.0,97797.0,4e-07]
[1736079942410,1.70891135,97798.0,97797.0,4e-07]
[1736079942638,1.69991135,97798.0,97797.0,4e-07]
[1736079942863,1.71791135,97798.0,97797.0,4e-07]
[1736079943061,1.56964921,97798.0,97797.0,4e-07]
[1736079943293,1.55164921,97798.0,97797.0,4e-07]
[1736079943696,1.56064921,97798.0,97797.0,4e-07]
[1736079944461,1.28558296,97798.0,97797.0,4e-07]
[1736079944608,1.29458296,97798.0,97797.0,4e-07]
[1736079946593,1.28558296,97798.0,97797.0,4e-07]
[1736079946816,1.29458296,97798.0,97797.0,4e-07]
[1736079947451,1.28558296,97798.0,97797.0,4e-07]
[1736079947614,0.6188714,97792.0,97790.0,0.0001706]
[1736079947810,1.15431884,97792.0,97790.0,0.0001706]
[1736079948461,1.16247019,97792.0,97790.0,0.0001706]
[1736079949178,1.17147019,97792.0,97790.0,0.0001706]
[1736079950105,1.47352811,97792.0,97790.0,0.0001706]
[1736079950313,1.49454083,97792.0,97790.0,0.0001706]
[1736079950540,1.48766083,97792.0,97790.0,0.0001706]
[1736079950754,1.48554083,97792.0,97790.0,0.0001706]
[1736079951273,1.47654083,97792.0,97790.0,0.0001706]
[1736079951476,1.48554083,97792.0,97790.0,0.0001706]
[1736079952156,1.49454083,97792.0,97790.0,0.0001706]
[1736079952367,1.67760419,97792.0,97790.0,0.0001706]
[1736079953042,1.66860419,97792.0,97790.0,0.0001706]
[1736079953410,1.67760419,97792.0,97790.0,0.0001706]
[1736079954240,1.66860419,97792.0,97790.0,0.0001706]
[1736079954600,1.67760419,97792.0,97790.0,0.0001706]
[1736079955445,1.49454083,97792.0,97790.0,0.0001706]
[1736079957017,1.48766083,97792.0,97790.0,0.0001706]
[1736079957293,1.49454083,97792.0,97790.0,0.0001706]
[1736079959188,1.49454083,97792.0,97791.0,0.000571]
[1736079960211,1.48766083,97792.0,97791.0,0.000571]
[1736079960405,1.39055453,97792.0,97791.0,0.000571]
[1736079960855,1.08849661,97792.0,97791.0,0.000571]
[1736079962203,1.22578592,97792.0,97791.0,0.000571]
[1736079963655,1.08849661,97792.0,97791.0,0.000571]
[1736079963865,1.19248293,97792.0,97791.0,0.000571]
[1736079964237,1.14244293,97792.0,97791.0,0.000571]
[1736079964422,1.19248293,97792.0,97791.0,0.000571]
[1736079965042,1.51752419,97792.0,97791.0,0.000571]
[1736079966681,1.70058755,97792.0,97791.0,0.000571]
[1736079968432,1.51752419,97792.0,97791.0,0.000571]
[1736079970707,1.74635339,97792.0,97791.0,0.000571]
[1736079971061,1.51752419,97792.0,97791.0,0.000571]
[1736079974166,1.51752419,97792.0,97790.0,6e-07]
[1736079974167,0.3121564,97791.0,97790.0,6e-07]
[1736079974384,0.90610384,97791.0,97790.0,6e-07]
[1736079974596,0.90738099,97791.0,97790.0,6e-07]
[1736079974809,0.9201727,97791.0,97790.0,6e-07]
[1736079975671,0.9201727,97791.0,97785.0,0.0001708]
[1736079975672,0.3436164,97786.0,97785.0,0.0001708]
[1736079975880,0.75207754,97786.0,97785.0,0.0001708]
[1736079976930,0.76112693,97786.0,97785.0,0.0001708]
[1736079977130,0.76800693,97786.0,97785.0,0.0001708]
[1736079977349,0.75900693,97786.0,97785.0,0.0001708]
[1736079977577,1.53909069,97786.0,97785.0,0.0001708]
[1736079978302,1.64434369,97786.0,97785.0,0.0001708]
[1736079978514,1.65234369,97786.0,97785.0,0.0001708]
[1736079978726,1.66134369,97786.0,97785.0,0.0001708]
[1736079980224,1.67411381,97786.0,97785.0,0.0001708]
[1736079980654,1.98405916,97786.0,97785.0,0.0001708]
[1736079981730,1.67411381,97786.0,97785.0,0.0001708]
[1736079981933,1.68414274,97786.0,97785.0,0.0001708]
[1736079982080,1.73418274,97786.0,97785.0,0.0001708]
[1736079982963,1.75454379,97786.0,97785.0,0.0001708]
[1736079983164,1.74766379,97786.0,97785.0,0.0001708]
[1736079983370,1.29950129,97786.0,97785.0,0.0001708]
[1736079984697,1.75454379,97786.0,97785.0,0.0001708]
[1736079985946,1.74766379,97786.0,97785.0,0.0001708]
[1736079986149,1.75454379,97786.0,97785.0,0.0001708]
[1736079987981,1.75863879,97786.0,97785.0,0.0001708]
[1736079988190,1.65465247,97786.0,97785.0,0.0001708]
[1736079988975,1.63765247,97786.0,97785.0,0.0001708]
[1736079989412,1.64665247,97786.0,97785.0,0.0001708]
[1736079990243,1.63765247,97786.0,97785.0,0.0001708]
[1736079991412,1.64665247,97786.0,97785.0,7.06e-06]
[1736079991630,1.65565247,97786.0,97785.0,7.06e-06]
[1736079991861,1.75752291,97786.0,97785.0,7.06e-06]
[1736079992874,1.74852291,97786.0,97785.0,7.06e-06]
[1736079993125,1.73952291,97786.0,97785.0,7.06e-06]
[1736079993352,1.75752291,97786.0,97785.0,7.06e-06]
[1736079995935,1.80282291,97786.0,97785.0,7.06e-06]
[1736079997549,0.377568,97767.0,97766.0,0.0001708]
[1736079997797,0.88625858,97767.0,97766.0,0.0001708]
[1736079998015,0.4666884,97765.0,97764.0,4e-07]
[1736079998194,0.88202954,97765.0,97764.0,4e-07]
[1736079999419,0.94106954,97765.0,97764.0,4e-07]
[1736079999580,1.02226954,97765.0,97764.0,4e-07]
[1736079999791,1.13525586,97765.0,97764.0,4e-07]
[1736080000193,1.91533962,97765.0,97764.0,4e-07]
[1736080001128,1.89733962,97765.0,97764.0,4e-07]
[1736080001289,1.90633962,97765.0,97764.0,4e-07]
[1736080001493,1.92667389,97765.0,97764.0,4e-07]
[1736080002108,1.93567389,97765.0,97764.0,4e-07]
[1736080003747,2.24594123,97765.0,97764.0,4e-07]
[1736080003950,2.23906123,97765.0,97764.0,4e-07]
[1736080004166,2.24594123,97765.0,97764.0,4e-07]
[1736080004786,2.24594123,97765.0,97733.0,0.0009979]
[1736080004787,0.5932094,97755.0,97754.0,2e-07]
[1736080004995,1.01468369,97755.0,97754.0,2e-07]
[1736080005439,1.01587369,97755.0,97754.0,2e-07]
[1736080006056,1.01587369,97755.0,97754.0,0.00049588]
[1736080006206,1.03387369,97755.0,97754.0,0.00049588]
[1736080007022,1.81395745,97755.0,97754.0,0.00049588]
[1736080007436,1.8078243,97755.0,97754.0,0.00049588]
[1736080007653,1.7376443,97755.0,97754.0,0.00049588]
[1736080007863,1.6723243,97755.0,97754.0,0.00049588]
[1736080008068,1.6813243,97755.0,97754.0,0.00049588]
[1736080008305,1.6723243,97755.0,97754.0,0.00049588]
[1736080008744,1.6564443,97755.0,97754.0,0.00049588]
[1736080008948,1.71853212,97755.0,97754.0,0.00049588]
[1736080009165,1.72753212,97755.0,97754.0,0.00049588]
[1736080009549,1.27248962,97755.0,97754.0,0.00049588]
[1736080009965,1.28297928,97755.0,97754.0,0.00049588]
[1736080010402,1.29571315,97755.0,97754.0,0.00049588]
[1736080012969,1.24950533,97755.0,97754.0,0.00049588]
[1736080017095,1.29046433,97755.0,97754.0,0.00049588]
[1736080031583,1.29063533,97755.0,97754.0,0.00049588]
[1736080032289,1.28375533,97755.0,97754.0,0.00049588]
[1736080032474,1.29063533,97755.0,97754.0,0.00049588]
[1736080033761,1.16114927,97755.0,97754.0,0.00049588]
[1736080033974,1.12707027,97755.0,97754.0,0.00049588]
[1736080034175,1.16095427,97755.0,97754.0,0.00049588]
[1736080034582,1.15407427,97755.0,97754.0,0.00049588]
[1736080034806,1.4205047,97755.0,97754.0,0.00049588]
[1736080035003,1.4273847,97755.0,97754.0,0.00049588]
[1736080035213,1.4183847,97755.0,97754.0,0.00049588]
[1736080035428,1.4273847,97755.0,97754.0,0.00049588]
[1736080035635,1.4363847,97755.0,97754.0,0.00049588]
[1736080036044,0.83591301,97755.0,97754.0,0.00049588]
[1736080037196,0.82691301,97755.0,97754.0,0.00049588]
[1736080037613,0.83491301,97755.0,97754.0,0.00049588]
[1736080037806,0.82803301,97755.0,97754.0,0.00049588]
[1736080038018,0.83491301,97755.0,97754.0,0.00049588]
[1736080039338,1.14334074,97755.0,97754.0,0.00049588]
[1736080040781,1.13245674,97755.0,97754.0,0.00049588]
[1736080041905,1.10945674,97755.0,97754.0,0.00049588]
[1736080042474,1.29338758,97755.0,97754.0,0.00049588]
[1736080042887,1.14338758,97755.0,97754.0,0.00049588]
[1736080043878,1.13650758,97755.0,97754.0,0.00049588]
[1736080044081,1.14338758,97755.0,97754.0,0.00049588]
[1736080045493,0.95945674,97755.0,97754.0,0.00049588]
[1736080047187,0.65102901,97755.0,97754.0,0.00049588]
[1736080049104,0.64202901,97755.0,97754.0,0.00049588]
[1736080049671,0.65102901,97755.0,97754.0,0.00049588]
[1736080050033,0.64302901,97755.0,97754.0,0.00049588]
[1736080050234,0.73497639,97755.0,97754.0,0.00049588]
[1736080050438,0.74097639,97755.0,97754.0,0.00049588]
[1736080051264,0.64902901,97755.0,97754.0,0.00049588]
[1736080052328,0.64214901,97755.0,97754.0,0.00049588]
[1736080052734,0.43755601,97755.0,97754.0,0.01137948]
[1736080056435,0.42255601,97755.0,97754.0,0.01137948]
[1736080056848,0.32756969,97755.0,97754.0,0.07377948]
[1736080057059,0.32456969,97755.0,97754.0,0.12373948]
[1736080057269,0.32456969,97755.0,97754.0,0.3737412]
[1736080057542,0.33356969,97755.0,97754.0,0.3737412]
[1736080057748,0.32756969,97755.0,97754.0,0.3737412]
[1736080057955,0.32356969,97755.0,97754.0,0.3737412]
[1736080058829,0.22576969,97755.0,97754.0,0.48680752]
[1736080059269,0.09194738,97788.0,97787.0,0.0608436]
[1736080059453,0.13795955,97791.0,97789.0,0.0608436]
[1736080059686,0.13795955,97791.0,97789.0,0.06186609]
[1736080059893,0.13795955,97791.0,97789.0,0.0608436]
[1736080060642,0.204488,97805.0,97789.0,0.06133928]
[1736080060851,0.204488,97805.0,97789.0,0.06236177]
[1736080061063,0.0020855,97790.0,97789.0,0.06236177]
[1736080062235,8.55e-05,97790.0,97789.0,0.06236177]
[1736080062678,8.55e-05,97790.0,97789.0,0.06436177]
[1736080063088,8.55e-05,97790.0,97789.0,0.06736177]
[1736080063538,8.55e-05,97790.0,97789.0,0.06236177]
[1736080063989,8.55e-05,97790.0,97789.0,0.06536177]
[1736080064194,8.55e-05,97790.0,97789.0,0.07750936]
[1736080064395,8.55e-05,97790.0,97789.0,0.07450936]
[1736080064603,8.55e-05,97790.0,97789.0,0.06736177]
[1736080064815,8.55e-05,97790.0,97789.0,0.06633928]
[1736080065659,8.55e-05,97790.0,97789.0,0.06433928]
[1736080065866,8.55e-05,97790.0,97789.0,0.06633928]
[1736080066053,8.55e-05,97790.0,97789.0,0.06333928]
[1736080066251,8.55e-05,97790.0,97789.0,0.06133928]
[1736080066457,8.55e-05,97790.0,97789.0,0.06333928]
[1736080066622,8.55e-05,97790.0,97789.0,0.06533928]
[1736080066837,8.55e-05,97790.0,97789.0,0.06133928]
[1736080067035,8.55e-05,97790.0,97789.0,0.06333928]
[1736080067245,8.55e-05,97790.0,97789.0,0.06533928]
[1736080067441,8.55e-05,97790.0,97789.0,0.06333928]
[1736080067621,8.55e-05,97790.0,97789.0,0.06236173]
[1736080068002,8.55e-05,97790.0,97789.0,0.06436173]
[1736080068850,8.55e-05,97790.0,97789.0,0.06636173]
[1736080069109,8.55e-05,97790.0,97789.0,0.06436173]
[1736080069308,8.55e-05,97790.0,97789.0,0.06236173]
[1736080069528,8.55e-05,97790.0,97789.0,0.16236173]
[1736080069694,8.55e-05,97790.0,97789.0,0.16636173]
[1736080070220,8.55e-05,97790.0,97789.0,0.16436173]
[1736080070433,8.55e-05,97790.0,97789.0,0.16636173]
[1736080071210,8.55e-05,97790.0,97789.0,0.26636173]
[1736080071414,8.55e-05,97797.0,97796.0,0.1608436]
[1736080071621,8.55e-05,97797.0,97796.0,0.27273206]
[1736080071824,8.55e-05,97797.0,97796.0,0.27170992]
[1736080072429,8.55e-05,97797.0,97796.0,0.36933692]
[1736080072631,8.55e-05,97797.0,97796.0,0.47621692]
[1736080072899,0.0010855,97797.0,97796.0,0.47821692]
[1736080073466,0.0010855,97797.0,97796.0,0.4883887]
[1736080073666,0.00087345,97797.0,97796.0,0.4883887]
[1736080074095,0.00087345,97797.0,97796.0,0.4923887]
[1736080074617,0.00087345,97797.0,97796.0,0.4883887]
[1736080074820,0.00187345,97797.0,97796.0,0.3933887]
[1736080075054,0.00187345,97797.0,97796.0,0.23256238]
[1736080075186,0.00187345,97797.0,97796.0,0.28252238]
[1736080076469,0.00195885,97797.0,97796.0,0.28252238]
[1736080082342,0.00195885,97797.0,97796.0,0.4865087]
[1736080083405,0.00195885,97797.0,97796.0,0.3865087]
[1736080083589,0.00195885,97797.0,97796.0,0.28252238]
[1736080088447,0.00195885,97797.0,97796.0,0.28269318]
[1736080089014,0.00195885,97797.0,97796.0,0.26440945]
[1736080089301,0.00195885,97797.0,97796.0,0.31436945]
[1736080091374,0.0755,97802.0,97796.0,0.31436945]
[1736080091597,0.0755,97802.0,97801.0,0.254456]
[1736080091772,0.0755,97802.0,97801.0,0.28613227]
[1736080091996,0.0755,97802.0,97801.0,0.29701587]
[1736080093006,0.0765,97802.0,97801.0,0.25205587]
[1736080093213,0.0765,97802.0,97801.0,0.30201587]
[1736080093619,0.0775,97802.0,97801.0,0.30201587]
[1736080094089,0.0765,97802.0,97801.0,0.30201587]
[1736080094380,0.0765,97802.0,97801.0,0.30601587]
[1736080100080,0.0765854,97802.0,97801.0,0.30601587]
[1736080100282,0.0765854,97802.0,97801.0,0.09063627]
[1736080100283,0.1226854,97802.0,97801.0,0.09063627]
[1736080100692,0.13505182,97802.0,97801.0,0.09063627]
[1736080101105,0.23903814,97802.0,97801.0,0.09063627]
[1736080101307,0.23903814,97802.0,97801.0,0.05496]
[1736080101655,0.23803814,97802.0,97801.0,0.05196]
[1736080102093,0.23803814,97802.0,97801.0,0.005]
[1736080102495,0.23803814,97802.0,97801.0,0.002]
[1736080102694,0.23803814,97802.0,97801.0,0.005]
[1736080102897,0.23803814,97802.0,97801.0,0.05496]
[1736080103118,0.23803814,97802.0,97801.0,0.04996]
[1736080103334,0.23803814,97802.0,97801.0,0.05296]
[1736080103670,0.23803814,97802.0,97801.0,0.05196]
[1736080103873,0.23803814,97802.0,97801.0,0.002]
[1736080104027,0.0755,97800.0,97796.0,0.0001708]
[1736080104227,0.0755,97798.0,97796.0,0.0001708]
[1736080104456,0.10398632,97799.0,97796.0,0.0001708]
[1736080104457,0.17948632,97797.0,97796.0,0.0001708]
[1736080104843,0.18048182,97797.0,97796.0,0.0501308]
[1736080106195,0.18348182,97797.0,97796.0,0.0501308]
[1736080106456,0.18348182,97797.0,97796.0,0.0001708]
[1736080107423,0.18048182,97797.0,97796.0,0.0001708]
[1736080108225,0.18048182,97797.0,97796.0,0.0011708]
[1736080108603,0.18048182,97797.0,97796.0,0.0001708]
[1736080108959,0.18048182,97797.0,97796.0,0.0011708]
[1736080109166,0.18248182,97797.0,97796.0,0.0511308]
[1736080110423,0.18248182,97797.0,97796.0,0.0501308]
[1736080110560,0.18248182,97797.0,97796.0,0.0511308]
[1736080110970,0.18248182,97797.0,97796.0,0.0501308]
[1736080111164,0.18248182,97797.0,97796.0,0.0001708]
[1736080111372,0.22848182,97797.0,97796.0,0.0011708]
[1736080111773,0.22848182,97797.0,97796.0,0.0001708]
[1736080112191,0.22848182,97797.0,97796.0,0.0011708]
[1736080112853,0.22948182,97797.0,97796.0,0.0011708]
[1736080113254,0.22848182,97797.0,97796.0,0.0011708]
[1736080113456,0.25448182,97797.0,97796.0,0.0001708]
[1736080113877,0.25148182,97797.0,97796.0,0.0001708]
[1736080114078,0.25848182,97797.0,97796.0,0.0001708]
[1736080114512,0.25148182,97797.0,97796.0,0.0001708]
[1736080114801,0.26048182,97797.0,97796.0,0.0001708]
[1736080115129,0.27176196,97797.0,97796.0,0.0001708]
[1736080116609,0.26276196,97797.0,97796.0,0.0001708]
[1736080116815,0.27176196,97797.0,97796.0,0.0001708]
[1736080117023,0.78303196,97797.0,97796.0,0.0001708]
[1736080117366,0.78603196,97797.0,97796.0,0.0001708]
[1736080122564,0.78611736,97797.0,97796.0,0.0001708]
[1736080133289,0.79299736,97797.0,97796.0,0.0001708]
[1736080135445,0.79199921,97797.0,97796.0,0.0001708]
[1736080142215,0.78899921,97797.0,97796.0,0.0001708]
[1736080142368,0.77999921,97797.0,97796.0,0.0001708]
[1736080142583,0.79546664,97797.0,97796.0,0.0011708]
[1736080142782,0.80446664,97797.0,97796.0,0.0011708]
[1736080143328,0.79046664,97797.0,97796.0,0.0001708]
[1736080143464,0.79546664,97797.0,97796.0,0.0001708]
[1736080143660,0.80446664,97797.0,97796.0,0.0001708]
[1736080143909,0.78858664,97797.0,97796.0,0.0001708]
[1736080144111,0.78499921,97797.0,97796.0,0.0001708]
[1736080144323,0.79399921,97797.0,97796.0,0.0001708]
[1736080144719,0.94399921,97797.0,97796.0,0.0001708]
[1736080146054,0.93899921,97797.0,97796.0,0.0001708]
[1736080146212,0.94399921,97797.0,97796.0,0.0001708]
[1736080148668,1.12793005,97797.0,97796.0,0.0001708]
[1736080150219,1.03311561,97797.0,97796.0,0.0001708]
[1736080151345,1.02811561,97797.0,97796.0,0.0001708]
[1736080151770,1.03511561,97797.0,97796.0,0.0011708]
[1736080152559,1.47081083,97797.0,97796.0,0.0011708]
[1736080153044,1.47981083,97797.0,97796.0,0.0011708]
[1736080154924,1.55850374,97797.0,97796.0,0.0011708]
[1736080155584,1.50846374,97797.0,97796.0,0.0011708]
[1736080155851,1.55850374,97797.0,97796.0,0.0011708]
[1736080156056,1.47981083,97797.0,97796.0,0.0011708]
[1736080156871,1.47293083,97797.0,97796.0,0.0011708]
[1736080157030,1.47981083,97797.0,97796.0,0.0011708]
[1736080160277,1.47981083,97797.0,97796.0,8e-07]
[1736080167781,1.47981083,97797.0,97796.0,0.0001716]
[1736080168184,1.58379715,97797.0,97796.0,0.0001716]
[1736080173795,1.57691715,97797.0,97796.0,0.0001716]
[1736080173929,1.58379715,97797.0,97796.0,0.0001716]
[1736080182243,1.47948851,97797.0,97796.0,0.0001716]
[1736080190745,1.78975585,97797.0,97796.0,0.0001716]
[1736080192116,1.47948851,97797.0,97796.0,0.0001716]
[1736080194735,1.47948851,97797.0,97796.0,6e-07]
[1736080202359,1.47260851,97797.0,97796.0,6e-07]
[1736080202632,1.30594851,97797.0,97796.0,6e-07]
[1736080204379,0.91129329,97797.0,97796.0,6e-07]
[1736080205005,0.91129329,97797.0,97796.0,0.0004006]
[1736080206716,0.91029613,97797.0,97796.0,0.0004006]
[1736080209179,0.204551,97775.0,97773.0,0.04701508]
[1736080209390,0.10398632,97774.0,97773.0,0.04810559]
[1736080209630,0.10398632,97774.0,97773.0,0.04712149]
[1736080209842,0.61525632,97774.0,97773.0,0.04712149]
[1736080210695,0.61725632,97774.0,97773.0,0.04712149]
[1736080212495,0.61725632,97774.0,97773.0,0.04812149]
[1736080213012,0.51327,97774.0,97773.0,0.05900509]
[1736080213222,0.51327,97774.0,97773.0,0.05800509]
[1736080213432,0.51127,97774.0,97773.0,0.05817589]
[1736080213787,0.51827,97774.0,97773.0,0.05817589]
[1736080213998,0.51127,97774.0,97773.0,0.05817589]
[1736080214383,0.51327,97774.0,97773.0,0.05817589]
[1736080215239,0.51327,97774.0,97773.0,0.04729229]
[1736080215437,0.51327,97774.0,97773.0,0.04829229]
[1736080215847,0.51327,97774.0,97773.0,0.05817589]
[1736080216238,0.51327,97774.0,97773.0,0.05917589]
[1736080216433,0.51127,97774.0,97773.0,0.05917589]
[1736080216805,0.51327,97774.0,97773.0,0.05917589]
[1736080217016,0.51127,97774.0,97773.0,0.05917589]
[1736080217436,0.51727,97774.0,97773.0,0.05917589]
[1736080217660,0.51727,97774.0,97773.0,0.05919857]
[1736080217878,0.51927,97774.0,97773.0,0.06607857]
[1736080218071,0.52026891,97774.0,97773.0,0.16316221]
[1736080218288,0.53059077,97774.0,97773.0,0.05917589]
[1736080218929,0.53059077,97774.0,97773.0,0.09101099]
[1736080219141,0.53059077,97774.0,97773.0,0.09001099]
[1736080219353,0.53059077,97774.0,97773.0,0.09101099]
[1736080219564,0.52259077,97774.0,97773.0,0.09101099]
[1736080219807,0.52359077,97774.0,97773.0,0.09201099]
[1736080220222,0.52259077,97774.0,97773.0,0.05917589]
[1736080220654,0.52259077,97774.0,97773.0,0.19628129]
[1736080221104,0.52359077,97774.0,97773.0,0.19728129]
[1736080221308,0.52359077,97774.0,97773.0,0.19528129]
[1736080221575,0.52359077,97774.0,97773.0,0.19928129]
[1736080221793,0.52359077,97774.0,97773.0,0.06217589]
[1736080221981,0.52359077,97774.0,97773.0,0.0591985]
[1736080222250,0.51227,97774.0,97773.0,0.0591985]
[1736080222435,0.51327,97774.0,97773.0,0.0631985]
[1736080222642,0.52565482,97774.0,97773.0,0.0641985]
[1736080223936,0.52365482,97774.0,97773.0,0.0631985]
[1736080224143,0.52465482,97774.0,97773.0,0.0641985]
[1736080224343,0.52365482,97774.0,97773.0,0.0601985]
[1736080224549,0.52465482,97774.0,97773.0,0.0631985]
[1736080224905,0.52474022,97774.0,97773.0,0.0631985]
[1736080228365,0.52474022,97774.0,97773.0,0.06217589]
[1736080229275,0.52374022,97774.0,97773.0,0.05917589]
[1736080229520,0.52274022,97774.0,97773.0,0.06219853]
[1736080229709,0.52274022,97774.0,97773.0,0.06117589]
[1736080230008,0.52374022,97774.0,97773.0,0.06217589]
[1736080230136,0.52374022,97774.0,97773.0,0.06319853]
[1736080230572,0.52374022,97774.0,97773.0,0.06217589]
[1736080230770,0.52374022,97774.0,97773.0,0.05917589]
[1736080231174,0.52374022,97774.0,97773.0,0.06217589]
[1736080231403,0.52374022,97774.0,97773.0,0.06319853]
[1736080231599,0.52374022,97774.0,97773.0,0.06217589]
[1736080231812,0.52374022,97774.0,97773.0,0.05917589]
[1736080232018,0.52374022,97774.0,97773.0,0.06217589]
[1736080232527,0.52274022,97774.0,97773.0,0.06117589]
[1736080232938,0.52374022,97774.0,97773.0,0.06217589]
[1736080235186,0.52374022,97774.0,97773.0,0.06319853]
[1736080237280,0.52374022,97774.0,97773.0,0.06217589]
[1736080238581,0.52374022,97774.0,97773.0,0.05917589]
[1736080238785,0.52274022,97774.0,97773.0,0.05817589]
[1736080238963,0.52274022,97774.0,97773.0,0.06117589]
[1736080239182,0.52274022,97774.0,97773.0,0.06217589]
[1736080240042,0.52274022,97774.0,97773.0,0.01416081]
[1736080240474,0.52274022,97774.0,97773.0,0.05917589]
[1736080240808,0.52274022,97774.0,97773.0,0.01216081]
[1736080241027,0.52274022,97774.0,97773.0,0.01516081]
[1736080241396,0.52274022,97774.0,97773.0,0.06217589]
[1736080241599,0.52274022,97774.0,97773.0,0.05917589]
[1736080241813,0.52274022,97774.0,97773.0,0.05029229]
[1736080242013,0.60084022,97774.0,97773.0,0.05129229]
[1736080242319,0.60084022,97774.0,97773.0,0.05029229]
[1736080242682,0.60084022,97774.0,97773.0,0.00427721]
[1736080242891,0.60084022,97774.0,97773.0,0.00327721]
[1736080243096,0.60084022,97774.0,97773.0,0.05029229]
[1736080243298,0.70482654,97774.0,97773.0,0.05129229]
[1736080243614,0.70482654,97774.0,97773.0,0.05029229]
[1736080243829,0.70482654,97774.0,97773.0,0.04729229]
[1736080244028,0.70482654,97774.0,97773.0,0.05029229]
[1736080244625,0.70482654,97774.0,97773.0,0.04729229]
[1736080244834,0.70482654,97774.0,97773.0,0.04829229]
[1736080245056,0.70482654,97774.0,97773.0,0.05029229]
[1736080246230,0.70482654,97774.0,97773.0,0.00327721]
[1736080246863,0.70482654,97774.0,97773.0,0.05029229]
[1736080247063,0.70482654,97774.0,97773.0,0.04829229]
[1736080247436,0.70482654,97774.0,97773.0,0.04929229]
[1736080247873,0.70482654,97774.0,97773.0,0.04829229]
[1736080248255,0.70582654,97774.0,97773.0,0.04829229]
[1736080264678,0.69486778,97774.0,97773.0,0.04829229]
[1736080270419,0.59088146,97774.0,97773.0,0.04829229]
[1736080270635,0.59088146,97774.0,97773.0,0.05917589]
[1736080270636,0.51278146,97774.0,97773.0,0.05917589]
[1736080270843,0.51278146,97774.0,97773.0,0.06019859]
[1736080271496,0.51278146,97774.0,97773.0,0.10218538]
[1736080272125,0.51178146,97774.0,97773.0,0.10218538]
[1736080272333,0.51278146,97774.0,97773.0,0.3061717]
[1736080272536,0.51278146,97774.0,97773.0,0.305149]
[1736080272697,0.51178146,97774.0,97773.0,0.304149]
[1736080272927,0.43604303,97774.0,97773.0,0.57580053]
[1736080273410,0.39513303,97774.0,97773.0,0.67580053]
[1736080273534,0.33376803,97774.0,97773.0,0.67580053]
[1736080273741,0.22815595,97774.0,97773.0,0.70280053]
[1736080273948,0.21541261,97774.0,97773.0,0.70280053]
[1736080274160,0.0010854,97774.0,97773.0,0.69880053]
[1736080274568,0.0758,97821.0,97796.0,0.05789868]
[1736080274942,0.0758,97821.0,97796.0,0.41982719]
[1736080275118,0.0758,97821.0,97796.0,0.518805]
[1736080275876,0.0758,97821.0,97796.0,0.519805]
[1736080276826,0.0758,97821.0,97796.0,0.31881868]
[1736080278584,0.0758,97821.0,97796.0,0.31189868]
[1736080278743,0.204457,97820.0,97796.0,0.3209539]
[1736080279141,0.0010854,97797.0,97796.0,0.3219539]
[1736080280562,0.0010854,97797.0,97796.0,0.3189539]
[1736080280777,0.0020854,97797.0,97796.0,0.3239539]
[1736080280990,0.0010854,97797.0,97796.0,0.3229539]
[1736080281144,0.0010854,97797.0,97796.0,0.3259539]
[1736080281617,0.0010854,97797.0,97796.0,0.0809539]
[1736080281823,0.0010854,97797.0,97796.0,0.08197628]
[1736080282025,0.0010854,97797.0,97796.0,0.0700703]
[1736080282176,0.0010854,97797.0,97796.0,0.0809539]
[1736080282787,0.0010854,97797.0,97796.0,0.0700703]
[1736080282988,8.54e-05,97797.0,97796.0,0.0729539]
[1736080283739,8.54e-05,97797.0,97796.0,0.0679539]
[1736080283873,8.54e-05,97797.0,97796.0,0.0719539]
[1736080284075,8.54e-05,97797.0,97796.0,0.0610703]
[1736080284339,8.54e-05,97797.0,97796.0,0.0719539]
[1736080284540,0.0010854,97797.0,97796.0,0.0769539]
[1736080284775,0.0010854,97797.0,97796.0,0.07797628]
[1736080285395,0.0010854,97797.0,97796.0,0.07397628]
[1736080285722,0.0010854,97797.0,97796.0,0.07797628]
[1736080285924,8.54e-05,97797.0,97796.0,0.07297628]
[1736080286109,0.0010854,97797.0,97796.0,0.07797628]
[1736080286258,0.0010854,97797.0,97796.0,0.0660703]
[1736080286463,8.54e-05,97797.0,97796.0,0.0719539]
[1736080286671,8.54e-05,97797.0,97796.0,0.07297628]
[1736080286875,8.54e-05,97797.0,97796.0,0.06897628]
[1736080287285,8.54e-05,97797.0,97796.0,0.07297628]
[1736080287868,8.54e-05,97797.0,97796.0,0.06897628]
[1736080288046,8.54e-05,97797.0,97796.0,0.07297628]
[1736080288300,0.0010854,97797.0,97796.0,0.07797628]
[1736080288694,0.0010854,97797.0,97796.0,0.06689868]
[1736080289025,0.0010854,97797.0,97796.0,0.0198836]
[1736080289255,0.0010854,97797.0,97796.0,0.06689868]
[1736080289635,0.1291854,97797.0,97796.0,0.009]
[1736080289846,0.24274018,97797.0,97796.0,0.009]
[1736080290826,0.24274018,97797.0,97796.0,0.005]
[1736080290999,0.24274018,97797.0,97796.0,0.05201508]
[1736080291212,0.24274018,97797.0,97796.0,0.05601508]
[1736080291502,0.24174018,97797.0,97796.0,0.05101508]
[1736080291741,0.24174018,97797.0,97796.0,0.04701508]
[1736080291967,0.24174018,97797.0,97796.0,0.04901508]
[1736080292085,0.24174018,97797.0,97796.0,0.04801508]
[1736080292922,0.24274018,97797.0,97796.0,0.04801508]
[1736080293927,0.24274018,97797.0,97796.0,0.04701508]
[1736080294329,0.24274018,97797.0,97796.0,0.04801508]
[1736080295422,0.24174018,97797.0,97796.0,0.04801508]
[1736080295850,0.24374018,97797.0,97796.0,0.04801508]
[1736080296684,0.24374018,97797.0,97796.0,0.001]
[1736080296892,0.24374018,97797.0,97796.0,0.04801508]
[1736080297138,0.24374018,97797.0,97796.0,0.001]
[1736080297909,0.24374018,97797.0,97796.0,0.04801508]
[1736080298108,0.24374018,97797.0,97796.0,0.001]
[1736080298317,0.24374018,97797.0,97796.0,0.04801508]
[1736080298537,0.24374018,97797.0,97796.0,0.001]
[1736080298929,0.24374018,97797.0,97796.0,0.04801508]
[1736080299484,0.24374018,97797.0,97796.0,0.001]